bitfinex/quotes_ETHUSD_20220305
["timestamp","ask_amount","ask_price","bid_price","bid_amount"]
[1646496179597,0.99484336,2647.6,2647.4,0.00320075]
[1646496179787,0.99484336,2647.6,2647.1,0.1887]
[1646496180289,0.99484336,2647.6,2647.4,0.00307694]
[1646496181137,0.99484336,2647.6,2647.1,0.1887]
[1646496181343,0.99484336,2647.6,2647.4,0.00307694]
[1646496182137,0.99484336,2647.6,2647.1,0.1887]
[1646496182738,0.99484336,2647.6,2647.4,0.00297309]
[1646496183545,0.99484336,2647.6,2646.9,0.25]
[1646496183742,0.99484336,2647.6,2647.4,0.0029664]
[1646496184784,0.99484336,2647.6,2647.0,3.5]
[1646496184982,0.99484336,2647.6,2646.9,1.01533442]
[1646496185483,0.99484336,2647.6,2647.0,3.5]
[1646496185785,1.54910016,2647.5,2647.0,4.5]
[1646496185985,1.54910016,2647.5,2647.1,0.00286951]
[1646496186988,1.54910016,2647.5,2646.9,1.0]
[1646496187185,1.54910016,2647.5,2647.2,0.00294124]
[1646496188240,1.54910016,2647.5,2646.8,1.1347]
[1646496188639,1.54910016,2647.5,2647.2,0.00294122]
[1646496189039,2.24235185,2647.5,2647.2,0.00294122]
[1646496189347,2.24235185,2647.5,2646.5,4.55227334]
[1646496189539,1.11079022,2646.9,2646.5,4.55227334]
[1646496189741,1.11079022,2646.9,2646.5,1.07327334]
[1646496189941,0.69325169,2647.5,2646.5,1.07327334]
[1646496190141,0.69325169,2647.5,2646.5,0.07327334]
[1646496190342,1.5493414,2647.4,2646.5,0.07327334]
[1646496190541,1.5493414,2647.3,2646.5,0.07327334]
[1646496190743,1.54789158,2647.2,2646.5,0.07327334]
[1646496190943,1.68809505,2647.6,2646.9,0.00300825]
[1646496190944,0.99484336,2647.6,2646.9,0.00300825]
[1646496191143,1.97396222,2647.6,2646.9,0.00300825]
[1646496191745,1.97396222,2647.6,2646.7,1.0]
[1646496191989,1.97396222,2647.6,2646.6,2.08945684]
[1646496192289,1.97396222,2647.6,2647.1,0.00292861]
[1646496192684,0.99484336,2647.6,2647.1,0.00292861]
[1646496193190,0.99484336,2647.6,2646.6,1.08945684]
[1646496193389,0.99484336,2647.6,2647.2,0.00285102]
[1646496194191,0.99484336,2647.6,2646.7,5.79389225]
[1646496194598,0.99484336,2647.6,2646.7,6.98435366]
[1646496194892,0.99484336,2647.6,2647.3,0.002851]
[1646496195490,0.99484336,2647.6,2646.7,5.98435366]
[1646496195732,0.99484336,2647.6,2647.3,0.00308773]
[1646496196533,0.00764336,2647.6,2647.3,0.00308773]
[1646496196732,0.00764336,2647.6,2646.9,1.3782]
[1646496196933,0.00764336,2647.6,2647.3,0.00309564]
[1646496197935,0.00764336,2647.6,2647.2,0.92048925]
[1646496198137,0.00764336,2647.6,2647.3,0.00309564]
[1646496199140,0.00764336,2647.6,2647.2,0.92048925]
[1646496199395,0.00764336,2647.6,2647.3,0.00285317]
[1646496200282,0.00764336,2647.6,2647.0,1.0]
[1646496200483,0.00764336,2647.6,2647.3,0.00284716]
[1646496201483,0.00764336,2647.6,2647.0,1.0]
[1646496201685,0.00764336,2647.6,2646.8,2.1371]
[1646496201885,0.00764336,2647.6,2647.3,0.00284716]
[1646496202485,0.00764336,2647.6,2646.8,1.1371]
[1646496202888,0.00764336,2647.6,2647.3,0.00284716]
[1646496203742,0.00764336,2647.6,2646.8,1.1371]
[1646496204141,0.00764336,2647.6,2647.3,0.00288334]
[1646496205142,0.00764336,2647.6,2646.8,1.1371]
[1646496205342,0.00764336,2647.6,2647.3,0.00288334]
[1646496206142,0.00764336,2647.6,2646.9,4.5]
[1646496206341,0.00764336,2647.6,2647.3,0.00288334]
[1646496207382,0.00764336,2647.6,2646.9,4.5]
[1646496207686,0.00764336,2647.6,2647.3,0.0028721]
[1646496208685,0.00764336,2647.6,2647.0,0.1888]
[1646496208886,0.00764336,2647.6,2647.3,0.0028721]
[1646496209885,0.00764336,2647.6,2647.0,0.1888]
[1646496210292,5.94650567,2647.9,2647.3,0.0028721]
[1646496210734,1.54891287,2647.8,2647.3,0.0028721]
[1646496211134,1.54891287,2647.8,2647.0,0.1888]
[1646496211335,1.54891287,2647.8,2647.5,0.00288037]
[1646496212335,1.54891287,2647.8,2647.5,0.00288035]
[1646496213340,1.54891287,2647.8,2646.9,4.6887]
[1646496213540,1.55024979,2647.8,2646.9,4.6887]
[1646496213740,1.55024979,2647.8,2647.5,0.00288035]
[1646496213941,1.54891287,2647.8,2647.5,0.00288035]
[1646496214586,1.54891287,2647.7,2646.9,4.6887]
[1646496214785,1.54891287,2647.6,2646.9,4.6887]
[1646496214987,0.69458861,2648.1,2647.5,0.00287899]
[1646496215188,1.86376682,2648.2,2647.5,0.00287899]
[1646496215389,1.54891389,2648.1,2647.5,0.00287899]
[1646496215987,1.54891389,2648.1,2647.3,1.10117989]
[1646496216187,1.54891389,2648.1,2647.7,0.00287893]
[1646496216788,1.55179221,2648.2,2647.7,0.00287893]
[1646496216989,1.54891389,2648.1,2647.7,0.00287893]
[1646496217289,1.54891389,2648.0,2647.7,0.00287897]
[1646496217489,1.54891389,2647.9,2647.7,0.00287897]
[1646496217690,1.54891389,2647.8,2647.7,0.00287897]
[1646496217891,1.55179228,2648.2,2647.7,0.00287897]
[1646496218136,1.54871779,2648.1,2647.7,0.00287897]
[1646496218335,1.54871779,2648.0,2647.4,4.5]
[1646496218537,1.54871779,2647.9,2647.7,0.00287919]
[1646496218737,0.97128033,2648.1,2647.7,0.00287919]
[1646496218938,1.54869493,2648.0,2647.7,0.00287919]
[1646496219541,1.54869493,2648.0,2647.3,0.1887]
[1646496219739,1.54869493,2648.0,2647.1,1.245]
[1646496219740,1.09444813,2647.7,2647.1,1.245]
[1646496219942,1.54869493,2647.6,2647.0,4.00358228]
[1646496220939,1.54869493,2647.5,2647.2,0.00287931]
[1646496221138,1.54869493,2647.4,2647.2,0.00287931]
[1646496221339,0.00133692,2647.9,2647.2,0.00287931]
[1646496221988,0.00133692,2647.9,2647.3,1.10613446]
[1646496222288,1.54889414,2648.0,2647.4,3.50288135]
[1646496222489,1.54889414,2648.0,2647.4,0.00288135]
[1646496223087,1.54889414,2648.0,2647.2,4.5]
[1646496223298,1.54889414,2648.0,2647.6,0.00288129]
[1646496224291,1.54889414,2648.0,2647.2,4.5]
[1646496224490,1.55023106,2648.0,2647.7,0.00288125]
[1646496224691,1.54889414,2648.0,2647.8,4.0999537]
[1646496224892,1.54889414,2648.0,2647.8,2.44787098]
[1646496225091,0.69613232,2648.2,2647.9,4.02335343]
[1646496225391,0.69325169,2648.2,2647.9,4.02335343]
[1646496225838,0.69613002,2648.2,2647.9,4.02335343]
[1646496226434,0.69613002,2648.2,2647.7,0.00287892]
[1646496226635,0.69325169,2648.2,2647.4,1.19988623]
[1646496226835,0.00133692,2648.1,2647.7,0.00287902]
[1646496227236,0.69746705,2648.2,2647.7,0.00287902]
[1646496227438,0.69613013,2648.2,2647.7,0.00287902]
[1646496228036,0.69325169,2648.2,2647.4,1.19996282]
[1646496228240,0.00133692,2648.1,2647.7,0.00287895]
[1646496228446,0.69613006,2648.2,2647.7,0.00287895]
[1646496228641,1.54881486,2648.1,2647.7,0.00287895]
[1646496228841,1.54881486,2648.0,2647.7,0.00287895]
[1646496229041,1.54881486,2647.9,2647.7,0.00287895]
[1646496229242,1.54881486,2647.8,2647.4,1.19996282]
[1646496229493,0.00287856,2648.2,2647.7,0.00287914]
[1646496230395,2.243354,2648.3,2647.5,1.0]
[1646496230594,0.0028786,2648.2,2647.7,0.00287918]
[1646496231596,1.02379649,2648.1,2647.7,0.00287918]
[1646496231794,1.54876539,2648.0,2647.7,0.00287918]
[1646496232194,1.54876539,2648.0,2647.2,5.52284101]
[1646496232394,1.55010231,2648.0,2647.2,5.52284101]
[1646496234642,1.55010231,2648.0,2647.2,4.49246445]
[1646496234842,1.55010231,2648.0,2647.2,1.0]
[1646496235043,2.243354,2648.0,2647.2,1.0]
[1646496235241,2.24201708,2647.9,2647.0,1.0]
[1646496235442,1.54876539,2647.8,2647.0,1.0]
[1646496235643,1.54876539,2647.7,2646.9,4.75]
[1646496235844,2.49501566,2647.6,2646.9,4.75]
[1646496236041,1.54876539,2647.5,2646.9,4.75]
[1646496236248,1.54876539,2647.5,2646.9,4.5]
[1646496236544,1.54876539,2647.4,2647.2,0.00330009]
[1646496236745,1.54876539,2647.3,2647.2,0.00330009]
[1646496236984,2.243354,2648.0,2647.2,0.00330009]
[1646496237488,2.243354,2648.0,2647.1,0.88250542]
[1646496237683,2.243354,2648.0,2647.5,0.00329997]
[1646496237883,2.24201708,2648.0,2647.5,0.00329997]
[1646496238287,2.24201708,2648.0,2647.0,4.5]
[1646496238487,2.243354,2648.0,2647.0,4.5]
[1646496239389,2.243354,2648.0,2647.0,5.71670604]
[1646496239791,2.243354,2648.0,2647.1,0.1888]
[1646496241045,2.243354,2648.0,2647.1,0.38660595]
[1646496241247,1.54876539,2647.9,2647.4,0.00330005]
[1646496241650,1.54876539,2647.8,2647.4,0.00330005]
[1646496241845,0.00329923,2648.0,2647.4,0.00330005]
[1646496241846,1.54876539,2647.7,2647.4,0.00330005]
[1646496242048,1.54876539,2647.6,2647.4,0.00330005]
[1646496242246,1.54876539,2647.5,2647.2,4.5]
[1646496242446,0.00329923,2648.0,2647.4,0.00330005]
[1646496242646,1.55213593,2648.0,2647.4,0.00330005]
[1646496242846,1.5488367,2647.9,2647.4,0.00330005]
[1646496243046,1.5488367,2647.8,2647.4,0.00330005]
[1646496243249,1.5488367,2647.7,2647.4,0.00330005]
[1646496243449,3.07523808,2648.1,2647.1,3.48905755]
[1646496243450,1.5488367,2647.9,2647.1,3.48905755]
[1646496243649,1.5488367,2647.6,2647.1,4.48905755]
[1646496243849,0.00329927,2648.0,2647.4,0.00330009]
[1646496244259,1.55205843,2648.0,2647.4,0.00330009]
[1646496244687,1.54875916,2648.0,2647.1,4.48905755]
[1646496244897,1.55009608,2648.0,2647.1,4.48905755]
[1646496245088,1.55339542,2648.0,2647.4,0.00330017]
[1646496245287,1.54875916,2647.9,2647.4,0.00330017]
[1646496245588,1.54875916,2647.8,2647.4,0.00330017]
[1646496245788,1.54875916,2647.7,2647.4,0.00330017]
[1646496245987,1.20023692,2648.1,2647.3,0.95160144]
[1646496245988,1.54875916,2647.6,2647.3,0.95160144]
[1646496246188,1.54875916,2647.5,2647.4,3.50319006]
[1646496246393,1.55196442,2648.0,2647.4,3.50319006]
[1646496246590,1.55330134,2648.0,2647.4,4.50319006]
[1646496246793,1.54877516,2647.9,2647.4,4.50319006]
[1646496246989,1.54877516,2647.8,2647.4,4.5]
[1646496247189,1.54877516,2647.7,2647.4,4.5]
[1646496247390,1.54877516,2647.6,2647.4,1.0031901]
[1646496247590,0.00452622,2648.0,2647.4,1.0031901]
[1646496247791,1.54877516,2647.9,2647.4,0.0031901]
[1646496247997,1.54877516,2647.8,2647.4,0.0031901]
[1646496248243,0.69325169,2647.9,2647.1,0.19780595]
[1646496248244,0.00482723,2647.3,2647.1,0.19780595]
[1646496248446,1.54877516,2647.2,2647.1,0.19780595]
[1646496251645,2.5,2647.1,2647.0,0.00329788]
[1646496251902,4.04877516,2647.1,2647.0,0.00329788]
[1646496252495,15.58877516,2647.1,2647.0,0.00329788]
[1646496253098,15.58877516,2647.1,2646.2,0.25]
[1646496253300,1.14643753,2646.6,2645.9,0.0008]
[1646496254514,4.42446056,2647.1,2646.1,0.00329822]
[1646496254702,1.54937794,2647.0,2646.1,0.00329822]
[1646496254901,1.54937794,2646.9,2646.1,0.00329822]
[1646496255101,1.54937794,2646.8,2646.1,0.00329822]
[1646496255302,1.54937794,2646.7,2646.1,0.00329822]
[1646496255514,6.8866,2647.2,2645.8,0.1889]
[1646496255753,1.54928903,2647.1,2646.4,0.00329811]
[1646496256755,1.54928903,2647.1,2646.3,1.22313953]
[1646496257261,1.54928903,2647.1,2646.6,0.00320144]
[1646496257855,1.54928903,2647.1,2646.3,1.22313953]
[1646496258259,1.54928903,2647.1,2646.7,0.0032014]
[1646496259060,1.54928903,2647.1,2645.9,3.5]
[1646496259259,1.54928903,2647.1,2646.8,0.00320138]
[1646496260287,1.54928903,2647.1,2646.2,4.5]
[1646496260488,1.54928903,2647.1,2646.8,0.00319223]
[1646496261589,1.54928903,2647.1,2646.2,4.5]
[1646496261787,1.54928903,2647.1,2646.8,0.00319223]
[1646496262789,1.54928903,2647.1,2646.3,4.5]
[1646496263839,1.54928903,2647.1,2646.3,1.0]
[1646496264039,1.54928903,2647.1,2646.1,4.55491232]
[1646496264239,1.54928903,2647.1,2646.6,0.00308917]
[1646496265140,1.54928903,2647.1,2646.2,0.1889]
[1646496265340,1.54928903,2647.1,2646.7,0.00308911]
[1646496265743,1.2464,2647.2,2646.7,0.00308911]
[1646496266341,1.2464,2647.2,2646.4,3.5]
[1646496266543,0.00482723,2647.3,2646.8,0.00308907]
[1646496266744,1.5491329,2647.2,2646.8,0.00308907]
[1646496267597,1.5491329,2647.2,2646.7,0.94276216]
[1646496267789,1.5491329,2647.2,2646.9,0.00308565]
[1646496268592,1.5491329,2647.2,2646.7,0.94276216]
[1646496269194,1.5491329,2647.2,2646.9,0.00308563]
[1646496269995,1.5491329,2647.2,2646.7,0.94276216]
[1646496270396,1.5491329,2647.2,2646.9,0.00308563]
[1646496271241,1.5491329,2647.2,2646.9,0.00308585]
[1646496272342,1.5491329,2647.2,2646.7,0.94276216]
[1646496272544,1.5491329,2647.2,2646.8,3.5]
[1646496272748,0.00482723,2647.3,2646.9,0.00308585]
[1646496273351,0.00334214,2647.3,2646.9,0.00308585]
[1646496273548,0.00334214,2647.3,2646.8,7.1923]
[1646496273749,0.00334214,2647.3,2647.0,0.00308583]
[1646496273948,0.00334214,2647.3,2647.1,1.18905004]
[1646496274148,0.00334214,2647.3,2647.2,3.5]
[1646496274397,0.00334214,2647.3,2647.2,4.5]
[1646496276395,0.00334214,2647.3,2647.2,1.0]
[1646496276795,0.00334214,2647.3,2647.1,1.19204371]
[1646496277191,0.00334214,2647.3,2647.1,1.18905004]
[1646496277495,0.00334214,2647.3,2647.1,1.19204371]
[1646496278443,0.00334214,2647.3,2647.1,1.18905004]
[1646496278644,0.00334214,2647.3,2647.1,1.19213897]
[1646496278843,0.00334214,2647.3,2647.1,0.00308893]
[1646496279444,0.00334214,2647.3,2646.9,1.0]
[1646496279843,0.00334214,2647.3,2647.1,0.00308893]
[1646496280444,0.55227601,2647.8,2647.1,0.00308893]
[1646496280750,0.00133692,2647.9,2647.0,1.0593853]
[1646496280944,0.00442483,2647.9,2647.1,0.00308893]
[1646496281986,0.00133692,2647.9,2647.4,0.9353078]
[1646496282188,0.00308483,2647.9,2647.4,0.9353078]
[1646496283299,0.69458861,2648.1,2647.4,0.9353078]
[1646496283491,0.00308494,2647.9,2647.4,0.9353078]
[1646496284490,0.88198861,2648.2,2646.9,7.2008]
[1646496284690,0.00308494,2647.9,2647.3,0.00308574]
[1646496285638,0.00308665,2647.9,2647.3,0.00308744]
[1646496286842,0.69325169,2648.0,2647.2,3.5]
[1646496287040,0.00308665,2647.9,2647.3,0.00308744]
[1646496287940,1.79765683,2648.0,2647.1,1.03711058]
[1646496288351,0.00308665,2647.9,2647.3,0.00308744]
[1646496289145,0.69325169,2648.0,2647.1,1.03711058]
[1646496289401,0.00308989,2647.9,2647.3,0.00309069]
[1646496290392,0.00133692,2648.0,2647.2,1.0]
[1646496290594,0.00308989,2647.9,2647.3,0.00309069]
[1646496291694,0.00133692,2648.1,2647.1,2.19841058]
[1646496291899,0.00308989,2647.9,2647.3,0.00309069]
[1646496292695,1.69983097,2648.2,2647.2,4.5]
[1646496292898,0.00191444,2647.9,2647.2,4.5]
[1646496293749,0.00191444,2647.9,2647.2,1.0]
[1646496293947,0.00133692,2648.0,2647.2,1.0]
[1646496294248,0.0019144,2647.9,2647.2,3.5]
[1646496294745,0.0019144,2647.9,2647.2,4.5]
[1646496294945,0.0019144,2647.9,2647.2,3.5]
[1646496295146,0.00133692,2648.1,2647.2,3.5]
[1646496295147,0.00133692,2648.1,2647.2,1.0]
[1646496295345,0.00133692,2648.1,2647.2,3.5]
[1646496295546,0.0019144,2647.9,2647.2,3.5]
[1646496295747,0.0019144,2647.9,2647.2,1.0]
[1646496296047,0.0019144,2647.9,2647.1,2.19841058]
[1646496296048,0.0019144,2647.9,2647.1,3.19841058]
[1646496296251,0.0019144,2647.9,2647.2,3.5]
[1646496296448,0.00133692,2648.1,2647.1,3.19841058]
[1646496296647,0.00329943,2647.9,2647.3,0.00330028]
[1646496297494,1.69983097,2648.2,2647.2,4.5]
[1646496297692,1.69983097,2648.2,2647.2,4.6887]
[1646496297894,0.00329947,2647.9,2647.3,0.00330032]
[1646496300099,0.00133692,2648.0,2647.2,3.5]
[1646496300399,0.00323804,2647.9,2647.3,0.00323888]
[1646496301342,2.24216745,2648.0,2647.1,1.1613]
[1646496301545,0.00447598,2647.9,2647.3,0.00313987]
[1646496301739,1.54891576,2647.8,2647.3,0.00313987]
[1646496301940,1.54891576,2647.7,2647.3,0.00313987]
[1646496302140,1.54891576,2647.6,2647.3,0.00313987]
[1646496302340,1.54891576,2647.5,2647.0,4.5]
[1646496302540,1.54891576,2647.4,2647.3,0.00313979]
[1646496302941,1.54891576,2647.7,2647.3,0.00313979]
[1646496303141,1.05781333,2647.8,2647.3,0.00313979]
[1646496303142,1.54891576,2647.6,2647.3,0.00313979]
[1646496303347,1.54891576,2647.5,2647.3,0.00313979]
[1646496303553,1.54785022,2647.7,2646.9,1.1792]
[1646496303746,0.00819321,2647.2,2646.8,1.1887]
[1646496304051,0.00819321,2647.2,2646.8,1.0]
[1646496304496,0.00819321,2647.2,2646.7,3.4936]
[1646496304697,0.00819321,2647.2,2646.5,3.6488]
[1646496305096,0.00819321,2647.2,2646.9,0.00310067]
[1646496305898,0.00819321,2647.2,2646.5,3.6488]
[1646496306203,0.00819321,2647.2,2646.5,2.1792]
[1646496306410,0.00819321,2647.2,2646.9,0.00310065]
[1646496307201,0.00819321,2647.2,2646.4,0.1887]
[1646496307401,1.00780363,2646.9,2646.2,0.1889]
[1646496307802,1.00780363,2646.9,2646.1,1.4601]
[1646496308001,1.00780363,2646.9,2646.1,1.2101]
[1646496308449,1.18409321,2647.2,2646.2,3.5]
[1646496308848,1.18409321,2647.2,2646.4,0.00302692]
[1646496309447,1.18409321,2647.2,2646.6,1.15498276]
[1646496309649,0.00819321,2647.2,2646.6,1.15374753]
[1646496310049,0.00819321,2647.2,2646.7,0.00302679]
[1646496310852,0.00819321,2647.2,2646.6,1.15374753]
[1646496311049,0.00819321,2647.2,2646.8,0.00297055]
[1646496312094,0.00819321,2647.2,2646.6,1.15374753]
[1646496312594,0.00819321,2647.2,2646.9,0.00285191]
[1646496313200,0.00819321,2647.2,2646.7,2.1635]
[1646496313498,0.00819321,2647.2,2646.9,0.00285189]
[1646496314100,1.12270367,2647.5,2646.9,0.00285189]
[1646496314301,1.86915169,2647.7,2646.9,0.00285189]
[1646496314506,0.69325169,2647.6,2646.7,1.1635]
[1646496314701,0.69325169,2647.5,2646.9,0.00285963]
[1646496315645,0.87849852,2647.3,2646.4,2.64023363]
[1646496315845,0.87849852,2647.3,2647.1,0.00286698]
[1646496316647,0.69325169,2647.5,2647.1,0.00286698]
[1646496316846,0.69325169,2647.5,2646.4,3.64023363]
[1646496317051,0.69325169,2647.5,2647.1,0.00286698]
[1646496317846,0.69325169,2647.6,2647.1,0.00286698]
[1646496318250,0.69325169,2647.6,2646.4,7.14023363]
[1646496318251,1.86915169,2647.7,2646.4,7.14023363]
[1646496318449,1.86915169,2647.7,2646.8,0.91614361]
[1646496319051,1.1759,2647.7,2646.8,0.91614361]
[1646496319495,1.86915169,2647.7,2647.1,0.00286713]
[1646496320093,0.69325169,2647.6,2647.1,0.00286713]
[1646496320495,0.69325169,2647.6,2646.7,1.1252]
[1646496322098,0.69325169,2647.5,2646.7,1.1252]
[1646496322298,13.64023559,2647.7,2646.7,1.1252]
[1646496322299,0.69325169,2647.4,2646.7,1.1252]
[1646496322997,0.69325169,2647.4,2646.9,0.00306721]
[1646496323248,1.68508237,2647.4,2646.9,0.00306721]
[1646496323651,0.00515071,2646.8,2646.5,4.37900816]
[1646496324956,0.00515071,2646.8,2646.6,3.5]
[1646496325350,0.00515071,2646.8,2646.6,4.5]
[1646496325550,0.00515071,2646.8,2646.7,3.5]
[1646496325750,0.00515071,2646.8,2646.7,4.5]
[1646496325950,0.00515071,2646.8,2646.7,5.6974]
[1646496327005,0.00515071,2646.8,2646.7,5.69113101]
[1646496327409,0.00515071,2646.8,2646.7,6.06933101]
[1646496327617,0.00515071,2646.8,2646.7,6.52433101]
[1646496328409,0.00515071,2646.8,2646.7,3.0306]
[1646496329609,0.00515071,2646.8,2646.7,2.0306]
[1646496329819,0.00515071,2646.8,2646.7,3.0306]
[1646496330008,0.00515071,2646.8,2646.7,2.0306]
[1646496330214,0.00515071,2646.8,2646.7,3.0306]
[1646496330411,0.00515071,2646.8,2646.7,2.0306]
[1646496330642,0.00515071,2646.8,2646.7,3.0306]
[1646496330842,0.00515071,2646.8,2646.7,2.0306]
[1646496331041,0.00515071,2646.8,2646.7,3.0306]
[1646496331242,0.00515071,2646.8,2646.7,2.0306]
[1646496331443,0.00515071,2646.8,2646.7,2.6524]
[1646496331642,0.00515071,2646.8,2646.7,2.1974]
[1646496331842,0.00515071,2646.8,2646.7,1.1974]
[1646496334493,0.00515071,2646.8,2646.7,1.5756]
[1646496335793,0.00515071,2646.8,2646.7,5.0756]
[1646496335992,0.00515071,2646.8,2646.7,6.0756]
[1646496336694,0.00515071,2646.8,2646.7,5.6974]
[1646496336899,0.00515071,2646.8,2646.7,2.1974]
[1646496337294,0.00515071,2646.8,2646.6,2.0]
[1646496337494,0.00515071,2646.8,2646.6,1.0]
[1646496337794,0.00515071,2646.8,2646.6,0.0032016]
[1646496338263,1.0863043,2646.8,2646.6,0.0032016]
[1646496338753,1.54927699,2646.7,2646.2,2.1587]
[1646496338951,1.54927699,2646.7,2646.6,0.00320162]
[1646496339753,1.54927699,2646.7,2645.9,3.5]
[1646496339952,1.54927699,2646.7,2646.5,0.00305413]
[1646496341056,1.54927699,2646.7,2646.5,0.00299412]
[1646496341905,1.54927699,2646.7,2645.8,0.1889]
[1646496342094,1.05072567,2646.3,2645.8,0.1889]
[1646496342294,0.00515071,2646.8,2645.8,0.1889]
[1646496342496,1.54937611,2646.7,2645.7,3.2546]
[1646496343098,1.54937611,2646.7,2645.7,2.2546]
[1646496343300,1.1650719,2646.6,2645.8,3.5]
[1646496343503,1.1650719,2646.6,2646.1,0.00314155]
[1646496344302,1.54936727,2646.5,2645.7,2.2546]
[1646496344901,1.54936727,2646.5,2646.2,0.00320153]
[1646496345302,1.1650719,2646.6,2646.2,0.00320153]
[1646496345501,1.54938365,2646.5,2646.2,0.00320153]
[1646496345747,1.54938365,2646.5,2645.8,3.6889]
[1646496346050,0.00515071,2646.8,2646.2,0.00320153]
[1646496346246,1.54935665,2646.7,2646.2,0.00320153]
[1646496346647,1.04935665,2646.7,2646.3,1.06882606]
[1646496347149,0.00515071,2646.8,2646.3,1.0718841]
[1646496348047,0.00515071,2646.8,2646.3,1.06882606]
[1646496348250,0.00515071,2646.8,2646.4,0.00294995]
[1646496348453,0.00515071,2646.8,2646.4,3.50294995]
[1646496348850,0.00515071,2646.8,2646.4,4.50294995]
[1646496349252,0.00515071,2646.8,2646.4,1.0]
[1646496349495,0.00515071,2646.8,2646.5,0.00294993]
[1646496350494,0.00515071,2646.8,2646.3,4.6978]
[1646496350694,0.00515071,2646.8,2646.3,2.1978]
[1646496351093,0.00515071,2646.8,2646.5,0.00294991]
[1646496351694,0.00515071,2646.8,2646.3,1.1978]
[1646496352094,0.00515071,2646.8,2646.5,0.00324239]
[1646496352894,0.00515071,2646.8,2646.3,1.1978]
[1646496355348,1.04440267,2646.7,2646.3,1.1978]
[1646496355552,1.04440267,2646.7,2646.4,0.003163]
[1646496356351,1.04440267,2646.7,2645.7,6.981]
[1646496356993,1.04440267,2646.7,2645.7,7.981]
[1646496357995,1.04440267,2646.7,2645.8,0.1889]
[1646496360400,1.04440267,2646.7,2646.1,0.00317479]
[1646496361443,1.04440267,2646.7,2645.8,0.1889]
[1646496361851,1.04440267,2646.7,2646.3,0.00317472]
[1646496362045,1.04440267,2646.7,2645.7,4.6699]
[1646496362046,0.00551622,2646.2,2645.7,3.6699]
[1646496363549,0.00551622,2646.2,2645.7,4.6699]
[1646496363749,0.94991889,2646.7,2645.7,4.6699]
[1646496364406,0.94991889,2646.7,2645.7,4.481]
[1646496364796,0.00515071,2646.8,2645.8,0.97655598]
[1646496364994,0.00515071,2646.8,2646.1,0.00124051]
[1646496365993,0.00515071,2646.8,2645.9,4.5]
[1646496366194,0.00345071,2646.8,2646.2,0.00329656]
[1646496366395,0.00345071,2646.8,2646.2,1.12717628]
[1646496367394,0.00345071,2646.8,2646.3,4.6357]
[1646496367596,1.5527643,2646.8,2646.3,1.1357]
[1646496367796,0.00345071,2646.8,2646.3,2.1357]
[1646496367996,0.00345071,2646.8,2646.2,0.00304438]
[1646496368248,0.00345071,2646.8,2646.2,1.13874438]
[1646496368651,0.00345071,2646.8,2646.2,1.1357]
[1646496368848,0.00345071,2646.8,2646.2,1.13874438]
[1646496369048,0.00345071,2646.8,2646.2,2.33025614]
[1646496369250,0.00345071,2646.8,2646.3,3.5]
[1646496369751,0.00345071,2646.8,2646.3,4.5]
[1646496369950,0.00345071,2646.8,2646.2,3.33015339]
[1646496370149,0.00345071,2646.8,2646.2,2.33015339]
[1646496370350,0.00345071,2646.8,2646.3,3.5]
[1646496370549,0.00345071,2646.8,2646.2,2.33015339]
[1646496370750,0.00345071,2646.8,2646.2,3.33015339]
[1646496370952,0.00345071,2646.8,2646.2,2.33015339]
[1646496374100,0.00345071,2646.8,2646.5,0.02884296]
[1646496378953,0.00345071,2646.8,2646.7,0.0287995]
[1646496384448,0.00345071,2646.8,2646.7,0.05759596]
[1646496387596,1.45276333,2647.2,2646.7,0.05759596]
[1646496387792,1.87335169,2647.3,2646.7,0.05759596]
[1646496388996,1.87335169,2647.3,2646.7,0.07217562]
[1646496393052,0.69325169,2647.2,2646.7,0.07217562]
[1646496393651,0.69325169,2647.2,2646.9,0.04804459]
[1646496393852,0.08679393,2646.7,2646.3,4.5]
[1646496394152,0.08679393,2646.7,2646.3,3.5]
[1646496394407,0.08679393,2646.7,2646.3,4.5]
[1646496397198,0.08679393,2646.7,2646.3,4.6889]
[1646496399249,0.11520941,2646.7,2646.3,4.6889]
[1646496402196,0.07400941,2646.7,2646.3,4.6889]
[1646496403904,0.10952876,2646.7,2646.3,1.1889]
[1646496404123,0.10952876,2646.7,2646.3,0.1889]
[1646496405403,0.10952876,2646.7,2646.2,1.13858511]
[1646496405651,0.10952876,2646.7,2646.2,1.1357]
[1646496406045,0.10952876,2646.7,2646.2,1.13867337]
[1646496406847,0.10952876,2646.7,2646.2,1.1357]
[1646496407247,0.10952876,2646.7,2646.2,1.13867334]
[1646496407648,1.54949821,2646.6,2646.2,1.13867334]
[1646496408048,1.54949821,2646.6,2646.2,0.00297334]
[1646496408457,1.54949821,2646.6,2646.2,0.00296719]
[1646496409254,1.54949821,2646.6,2646.4,0.04496681]
[1646496413955,1.54949821,2646.6,2646.4,0.03871677]
[1646496414756,0.0668812,2646.5,2646.1,3.5]
[1646496414956,1.54949821,2646.4,2646.1,3.5]
[1646496415157,1.54949821,2646.4,2646.1,4.5]
[1646496415558,1.54949821,2646.4,2646.1,1.0]
[1646496415760,1.54949821,2646.4,2646.1,3.5]
[1646496415966,1.54949821,2646.4,2646.0,0.59872846]
[1646496416760,1.54949821,2646.4,2646.1,0.0031702]
[1646496417796,1.54949821,2646.4,2646.0,0.59872846]
[1646496417997,1.54949821,2646.4,2646.1,0.00317018]
[1646496419002,1.54949821,2646.4,2646.0,0.59872846]
[1646496419306,1.54949821,2646.4,2646.0,0.55369355]
[1646496419500,1.54949821,2646.4,2646.1,0.00304798]
[1646496420103,1.54949821,2646.4,2646.1,3.50304798]
[1646496420307,1.54949821,2646.4,2646.1,4.50304798]
[1646496421350,1.54949821,2646.4,2646.1,4.5]
[1646496421946,1.54949821,2646.4,2646.1,4.50284292]
[1646496422547,1.54949821,2646.4,2646.1,4.5]
[1646496422747,1.54949821,2646.4,2646.1,4.50285111]
[1646496423755,1.54949821,2646.4,2646.3,1.10887698]
[1646496426203,1.54949821,2646.4,2646.1,4.5]
[1646496426402,1.54949821,2646.4,2646.2,0.0028859]
[1646496427606,1.54949821,2646.4,2646.0,0.55369355]
[1646496427803,1.54949821,2646.4,2646.2,0.00288586]
[1646496428554,1.54949821,2646.4,2646.0,0.55369355]
[1646496428753,2.56149152,2646.4,2646.2,0.00297333]
[1646496428955,1.54949821,2646.3,2646.2,0.00297333]
[1646496429955,1.54949821,2646.3,2645.8,0.1889]
[1646496429956,1.54949821,2646.3,2646.1,0.00297064]
[1646496430953,1.54949821,2646.3,2645.8,0.1889]
[1646496431356,1.54949821,2646.3,2646.1,0.00297066]
[1646496432196,1.54949821,2646.3,2645.8,0.1889]
[1646496432398,1.54949821,2646.3,2646.1,0.00306806]